[Event "Titled Tuesday Blitz January 31 Early 2023"]
[White "Souleidis, Georgios"]
[Black "Bochnicka, Vladimir"]
[WhiteFideId "4206827"]
[BlackFideId "14943450"]
[WhiteElo "2419"]
[BlackElo "2327"]
[Result "0-1"]
[Round "09"]
[TimeControl "180+2"]
[Date "2023.01.31"]
[WhiteClock "0:00:10"]
[BlackClock "0:00:04"]

1. e4 {[%clk 0:03:00]}  c5 {[%clk 0:02:59]} 2. Nf3 {[%clk 0:03:00]}  Nc6 {[%clk 0:02:56]} 3. Bc4 {[%clk 0:03:00]}  e6 {[%clk 0:02:48]} 4. O-O {[%clk 0:03:00]}  Nge7 {[%clk 0:02:31]} 5. Re1 {[%clk 0:02:51]}  Ng6 {[%clk 0:02:22]} 6. c3 {[%clk 0:02:41]}  Be7 {[%clk 0:02:16]} 7. d4 {[%clk 0:02:41]}  cxd4 {[%clk 0:02:16]} 8. cxd4 {[%clk 0:02:42]}  d5 {[%clk 0:02:14]} 9. exd5 {[%clk 0:02:39]}  exd5 {[%clk 0:02:15]} 10. Bb3 {[%clk 0:02:38]}  O-O {[%clk 0:02:14]} 11. Nc3 {[%clk 0:02:37]}  Be6 {[%clk 0:02:06]} 12. Be3 {[%clk 0:02:20]}  Rc8 {[%clk 0:02:05]} 13. Nd2 {[%clk 0:01:53]}  Bf6 {[%clk 0:01:52]} 14. Nf1 {[%clk 0:01:39]}  Nge7 {[%clk 0:01:48]} 15. Ng3 {[%clk 0:01:38]}  g6 {[%clk 0:01:27]} 16. Qe2 {[%clk 0:01:35]}  Nxd4 {[%clk 0:01:15]} 17. Bxd4 {[%clk 0:01:27]}  Bxd4 {[%clk 0:01:16]} 18. Nb5 {[%clk 0:01:23]}  Qb6 {[%clk 0:00:44]} 19. Nxd4 {[%clk 0:01:14]}  Qxd4 {[%clk 0:00:44]} 20. Rad1 {[%clk 0:01:14]}  Qf6 {[%clk 0:00:34]} 21. Qe3 {[%clk 0:01:10]}  Nf5 {[%clk 0:00:16]} 22. Nxf5 {[%clk 0:01:10]}  Bxf5 {[%clk 0:00:17]} 23. Qxa7 {[%clk 0:01:07]}  Qxb2 {[%clk 0:00:15]} 24. Bxd5 {[%clk 0:00:42]}  Rc2 {[%clk 0:00:15]} 25. Rb1 {[%clk 0:00:28]}  Qc3 {[%clk 0:00:10]} 26. Qxb7 {[%clk 0:00:16]}  Qd4 {[%clk 0:00:05]} 27. Rf1 {[%clk 0:00:10]}  Rd2 {[%clk 0:00:04]} 0-1


[Site "https://www.chess.com"]

[Event "Titled Tuesday Blitz January 31 Early 2023"]
[White "Leiva, Gianmarco"]
[Black "Bouget, Alexandre"]
[WhiteFideId "3804399"]
[BlackFideId "681318"]
[WhiteElo "2392"]
[BlackElo "2267"]
[Result "1-0"]
[Round "09"]
[TimeControl "180+2"]
[Date "2023.01.31"]
[WhiteClock "0:00:29"]
[BlackClock "0:00:31"]

1. d4 {[%clk 0:03:00]}  c6 {[%clk 0:02:54]} 2. Bf4 {[%clk 0:03:01]}  f6 {[%clk 0:02:48]} 3. e3 {[%clk 0:02:56]}  d6 {[%clk 0:02:39]} 4. Nf3 {[%clk 0:02:50]}  e5 {[%clk 0:02:39]} 5. dxe5 {[%clk 0:02:48]}  fxe5 {[%clk 0:02:38]} 6. Bg3 {[%clk 0:02:40]}  Nf6 {[%clk 0:02:37]} 7. c4 {[%clk 0:02:38]}  Bg4 {[%clk 0:02:34]} 8. h3 {[%clk 0:02:34]}  Be6 {[%clk 0:02:21]} 9. Nc3 {[%clk 0:02:33]}  Be7 {[%clk 0:02:19]} 10. Be2 {[%clk 0:02:27]}  O-O {[%clk 0:02:15]} 11. O-O {[%clk 0:02:24]}  Kh8 {[%clk 0:02:14]} 12. Qc2 {[%clk 0:02:19]}  Nbd7 {[%clk 0:02:13]} 13. Rad1 {[%clk 0:02:14]}  Qe8 {[%clk 0:02:10]} 14. Ng5 {[%clk 0:02:02]}  Bg8 {[%clk 0:02:08]} 15. Nge4 {[%clk 0:02:02]}  Nxe4 {[%clk 0:01:55]} 16. Nxe4 {[%clk 0:02:03]}  d5 {[%clk 0:01:54]} 17. cxd5 {[%clk 0:01:34]}  cxd5 {[%clk 0:01:53]} 18. Nc3 {[%clk 0:01:35]}  Rc8 {[%clk 0:01:48]} 19. Qa4 {[%clk 0:01:33]}  Rc5 {[%clk 0:01:14]} 20. Bb5 {[%clk 0:01:24]}  Be6 {[%clk 0:01:10]} 21. Nxd5 {[%clk 0:00:57]}  Bxd5 {[%clk 0:01:11]} 22. Bxd7 {[%clk 0:00:54]}  Qg6 {[%clk 0:01:09]} 23. b4 {[%clk 0:00:44]}  Qe4 {[%clk 0:01:07]} 24. f3 {[%clk 0:00:40]}  Qg6 {[%clk 0:00:40]} 25. bxc5 {[%clk 0:00:35]}  Qxg3 {[%clk 0:00:32]} 26. Rxd5 {[%clk 0:00:32]}  Bg5 {[%clk 0:00:32]} 27. Qg4 {[%clk 0:00:30]}  Bxe3+ {[%clk 0:00:31]} 28. Kh1 {[%clk 0:00:29]} 1-0


[Site "https://www.chess.com"]

[Event "Titled Tuesday Blitz January 31 Early 2023"]
[White "Turzo, Attila"]
[Black "Kononenko, Dmitry"]
[WhiteFideId "704954"]
[BlackFideId "14113538"]
[WhiteElo "2279"]
[BlackElo "2256"]
[Result "1/2-1/2"]
[Round "09"]
[TimeControl "180+2"]
[Date "2023.01.31"]
[WhiteClock "0:00:09"]
[BlackClock "0:00:09"]

1. d4 {[%clk 0:03:00]}  Nf6 {[%clk 0:02:47]} 2. c4 {[%clk 0:03:01]}  c5 {[%clk 0:02:48]} 3. d5 {[%clk 0:03:00]}  b5 {[%clk 0:02:43]} 4. cxb5 {[%clk 0:03:01]}  a6 {[%clk 0:02:43]} 5. bxa6 {[%clk 0:03:01]}  g6 {[%clk 0:02:43]} 6. Nc3 {[%clk 0:02:59]}  Bg7 {[%clk 0:02:43]} 7. e4 {[%clk 0:02:57]}  O-O {[%clk 0:02:43]} 8. Bc4 {[%clk 0:02:54]}  Bxa6 {[%clk 0:02:41]} 9. Bxa6 {[%clk 0:02:47]}  Nxa6 {[%clk 0:02:40]} 10. Nf3 {[%clk 0:02:47]}  d6 {[%clk 0:02:40]} 11. O-O {[%clk 0:02:48]}  Nc7 {[%clk 0:02:35]} 12. a4 {[%clk 0:02:46]}  Qb8 {[%clk 0:02:33]} 13. Ra3 {[%clk 0:02:45]}  Qb4 {[%clk 0:02:20]} 14. Qc2 {[%clk 0:02:42]}  Rfb8 {[%clk 0:02:18]} 15. Nd2 {[%clk 0:02:31]}  Nd7 {[%clk 0:02:05]} 16. Rb3 {[%clk 0:02:04]}  Qa5 {[%clk 0:02:04]} 17. Nc4 {[%clk 0:01:58]}  Qa6 {[%clk 0:02:02]} 18. Rxb8+ {[%clk 0:01:57]}  Rxb8 {[%clk 0:02:01]} 19. b3 {[%clk 0:01:58]}  Qb7 {[%clk 0:01:49]} 20. Nd2 {[%clk 0:01:28]}  Qb4 {[%clk 0:01:44]} 21. Bb2 {[%clk 0:01:28]}  c4 {[%clk 0:01:42]} 22. Nxc4 {[%clk 0:01:20]}  Qxb3 {[%clk 0:01:39]} 23. Qxb3 {[%clk 0:01:16]}  Rxb3 {[%clk 0:01:40]} 24. Nd1 {[%clk 0:01:16]}  Nc5 {[%clk 0:01:33]} 25. Bxg7 {[%clk 0:01:12]}  Kxg7 {[%clk 0:01:34]} 26. f3 {[%clk 0:01:01]}  Nxa4 {[%clk 0:01:32]} 27. Nde3 {[%clk 0:01:01]}  Nc5 {[%clk 0:01:23]} 28. Ra1 {[%clk 0:01:00]}  Nb5 {[%clk 0:01:24]} 29. Kf2 {[%clk 0:00:58]}  Nd3+ {[%clk 0:01:19]} 30. Ke2 {[%clk 0:00:58]}  h5 {[%clk 0:01:14]} 31. h4 {[%clk 0:00:43]}  Kf6 {[%clk 0:00:57]} 32. Kf1 {[%clk 0:00:42]}  Nd4 {[%clk 0:00:54]} 33. Rd1 {[%clk 0:00:40]}  Nb5 {[%clk 0:00:45]} 34. Nd2 {[%clk 0:00:37]}  Rb4 {[%clk 0:00:38]} 35. Ndc4 {[%clk 0:00:35]}  Ne5 {[%clk 0:00:36]} 36. Nxe5 {[%clk 0:00:29]}  Kxe5 {[%clk 0:00:37]} 37. g3 {[%clk 0:00:26]}  Kf6 {[%clk 0:00:34]} 38. Rd2 {[%clk 0:00:25]}  Nc3 {[%clk 0:00:31]} 39. Kf2 {[%clk 0:00:24]}  Rb1 {[%clk 0:00:29]} 40. Rc2 {[%clk 0:00:23]}  Nb5 {[%clk 0:00:27]} 41. Rd2 {[%clk 0:00:22]}  Rb4 {[%clk 0:00:26]} 42. Rc2 {[%clk 0:00:22]}  Nd4 {[%clk 0:00:26]} 43. Rd2 {[%clk 0:00:22]}  Ra4 {[%clk 0:00:26]} 44. Kg2 {[%clk 0:00:20]}  Nb3 {[%clk 0:00:23]} 45. Rb2 {[%clk 0:00:20]}  Nc5 {[%clk 0:00:23]} 46. Rc2 {[%clk 0:00:20]}  Ra3 {[%clk 0:00:23]} 47. Nc4 {[%clk 0:00:18]}  Ra1 {[%clk 0:00:22]} 48. Ne3 {[%clk 0:00:17]}  Rb1 {[%clk 0:00:20]} 49. Nc4 {[%clk 0:00:16]}  Ra1 {[%clk 0:00:20]} 50. Ne3 {[%clk 0:00:17]}  Ke5 {[%clk 0:00:21]} 51. Nc4+ {[%clk 0:00:16]}  Kd4 {[%clk 0:00:21]} 52. Nb2 {[%clk 0:00:10]}  Ra2 {[%clk 0:00:19]} 53. Rf2 {[%clk 0:00:09]}  Nd3 {[%clk 0:00:17]} 54. Nxd3 {[%clk 0:00:09]}  Ra3 {[%clk 0:00:18]} 55. Nf4 {[%clk 0:00:09]}  Ke5 {[%clk 0:00:17]} 56. Ne2 {[%clk 0:00:09]}  Ra8 {[%clk 0:00:15]} 57. Ng1 {[%clk 0:00:10]}  Ra4 {[%clk 0:00:13]} 58. Re2 {[%clk 0:00:10]}  Kd4 {[%clk 0:00:13]} 59. f4 {[%clk 0:00:10]}  Kd3 {[%clk 0:00:13]} 60. Kf2 {[%clk 0:00:10]}  Rxe4 {[%clk 0:00:12]} 61. Rxe4 {[%clk 0:00:09]}  Kxe4 {[%clk 0:00:13]} 62. Nf3 {[%clk 0:00:09]}  Kxd5 {[%clk 0:00:13]} 63. Ke3 {[%clk 0:00:09]}  Ke6 {[%clk 0:00:13]} 64. Ke4 {[%clk 0:00:09]}  d5+ {[%clk 0:00:13]} 65. Kd4 {[%clk 0:00:09]}  Kf5 {[%clk 0:00:12]} 66. Ne5 {[%clk 0:00:07]}  Ke6 {[%clk 0:00:11]} 67. Ke3 {[%clk 0:00:07]}  Kf6 {[%clk 0:00:10]} 68. Kf3 {[%clk 0:00:07]}  e6 {[%clk 0:00:11]} 69. Nc6 {[%clk 0:00:07]}  Kf5 {[%clk 0:00:10]} 70. Nd4+ {[%clk 0:00:07]}  Kf6 {[%clk 0:00:10]} 71. Ke3 {[%clk 0:00:07]}  Ke7 {[%clk 0:00:10]} 72. Kd3 {[%clk 0:00:08]}  Kd6 {[%clk 0:00:10]} 73. Nc2 {[%clk 0:00:08]}  f6 {[%clk 0:00:09]} 74. Kd4 {[%clk 0:00:08]}  e5+ {[%clk 0:00:10]} 75. fxe5+ {[%clk 0:00:09]}  fxe5+ {[%clk 0:00:11]} 76. Ke3 {[%clk 0:00:09]}  Ke6 {[%clk 0:00:11]} 77. Ne1 {[%clk 0:00:09]}  Kf5 {[%clk 0:00:11]} 78. Kf3 {[%clk 0:00:09]}  e4+ {[%clk 0:00:12]} 79. Kf2 {[%clk 0:00:09]}  d4 {[%clk 0:00:11]} 80. Nc2 {[%clk 0:00:09]}  Ke5 {[%clk 0:00:09]} 81. Nb4 {[%clk 0:00:08]}  d3 {[%clk 0:00:05]} 82. Ke3 {[%clk 0:00:07]}  Kf5 {[%clk 0:00:06]} 83. Nd5 {[%clk 0:00:07]}  Kg4 {[%clk 0:00:06]} 84. Nc3 {[%clk 0:00:06]}  Kxg3 {[%clk 0:00:05]} 85. Nxe4+ {[%clk 0:00:06]}  Kxh4 {[%clk 0:00:06]} 86. Kxd3 {[%clk 0:00:07]}  g5 {[%clk 0:00:07]} 87. Ke2 {[%clk 0:00:07]}  g4 {[%clk 0:00:07]} 88. Kf2 {[%clk 0:00:08]}  Kh3 {[%clk 0:00:08]} 89. Kg1 {[%clk 0:00:07]}  h4 {[%clk 0:00:07]} 90. Nf2+ {[%clk 0:00:07]}  Kg3 {[%clk 0:00:08]} 91. Nxg4 {[%clk 0:00:07]}  Kxg4 {[%clk 0:00:08]} 92. Kg2 {[%clk 0:00:08]}  h3+ {[%clk 0:00:09]} 93. Kh2 {[%clk 0:00:08]}  Kf3 {[%clk 0:00:09]} 94. Kxh3 {[%clk 0:00:09]} 1/2-1/2


[Site "https://www.chess.com"]

[Event "Titled Tuesday Blitz January 31 Early 2023"]
[White "Kalogeris, Ioannis"]
[Black "Jimenez, Joaquin"]
[WhiteFideId "4239563"]
[BlackFideId "109860"]
[WhiteElo "2423"]
[BlackElo "2195"]
[Result "1-0"]
[Round "09"]
[TimeControl "180+2"]
[Date "2023.01.31"]
[WhiteClock "0:00:43"]
[BlackClock "0:00:01"]

1. e4 {[%clk 0:02:53]}  e6 {[%clk 0:03:00]} 2. d4 {[%clk 0:02:53]}  d5 {[%clk 0:03:00]} 3. Nc3 {[%clk 0:02:53]}  Bb4 {[%clk 0:02:59]} 4. Ne2 {[%clk 0:02:51]}  dxe4 {[%clk 0:02:56]} 5. a3 {[%clk 0:02:51]}  Be7 {[%clk 0:02:56]} 6. Nxe4 {[%clk 0:02:51]}  Nf6 {[%clk 0:02:56]} 7. Nxf6+ {[%clk 0:02:47]}  Bxf6 {[%clk 0:02:56]} 8. Be3 {[%clk 0:02:42]}  b6 {[%clk 0:02:56]} 9. Qd3 {[%clk 0:02:38]}  Bb7 {[%clk 0:02:46]} 10. O-O-O {[%clk 0:02:38]}  O-O {[%clk 0:02:40]} 11. Rg1 {[%clk 0:02:37]}  Nd7 {[%clk 0:02:26]} 12. g4 {[%clk 0:02:37]}  Be7 {[%clk 0:02:24]} 13. g5 {[%clk 0:02:30]}  Rc8 {[%clk 0:02:15]} 14. Nc3 {[%clk 0:02:17]}  c5 {[%clk 0:02:10]} 15. d5 {[%clk 0:02:17]}  c4 {[%clk 0:02:03]} 16. Qe4 {[%clk 0:01:56]}  Nc5 {[%clk 0:02:02]} 17. Qg4 {[%clk 0:01:48]}  exd5 {[%clk 0:01:51]} 18. Bxc4 {[%clk 0:01:48]}  Ne6 {[%clk 0:01:35]} 19. Nxd5 {[%clk 0:01:39]}  Bxd5 {[%clk 0:01:30]} 20. Rxd5 {[%clk 0:01:35]}  Qc7 {[%clk 0:01:24]} 21. Bb3 {[%clk 0:01:26]}  Nc5 {[%clk 0:01:06]} 22. Bxc5 {[%clk 0:01:25]}  Bxc5 {[%clk 0:01:06]} 23. g6 {[%clk 0:01:19]}  Kh8 {[%clk 0:00:41]} 24. Rd7 {[%clk 0:01:12]}  Qxh2 {[%clk 0:00:30]} 25. gxf7 {[%clk 0:01:11]}  Qh6+ {[%clk 0:00:27]} 26. Kb1 {[%clk 0:01:11]}  Bxf2 {[%clk 0:00:27]} 27. Rf1 {[%clk 0:01:10]}  Bc5 {[%clk 0:00:22]} 28. Rxa7 {[%clk 0:01:08]}  Rcd8 {[%clk 0:00:18]} 29. Rd7 {[%clk 0:00:58]}  Rxd7 {[%clk 0:00:18]} 30. Qxd7 {[%clk 0:00:58]}  Qe3 {[%clk 0:00:16]} 31. Qf5 {[%clk 0:00:48]}  Qe7 {[%clk 0:00:05]} 32. Rh1 {[%clk 0:00:47]}  h6 {[%clk 0:00:05]} 33. c3 {[%clk 0:00:44]}  Qe3 {[%clk 0:00:01]} 34. Bc2 {[%clk 0:00:43]} 1-0


[Site "https://www.chess.com"]

[Event "Titled Tuesday Blitz January 31 Early 2023"]
[White "Forgacs, Attila Jr."]
[Black "Ismagilov, Damir"]
[WhiteFideId "773654"]
[BlackFideId "34199982"]
[WhiteElo "2264"]
[BlackElo "2156"]
[Result "0-1"]
[Round "09"]
[TimeControl "180+2"]
[Date "2023.01.31"]
[WhiteClock "0:00:02"]
[BlackClock "0:00:47"]

1. e4 {[%clk 0:03:00]}  c6 {[%clk 0:02:58]} 2. d4 {[%clk 0:03:00]}  d5 {[%clk 0:02:58]} 3. Nd2 {[%clk 0:03:00]}  dxe4 {[%clk 0:02:53]} 4. Nxe4 {[%clk 0:03:01]}  g6 {[%clk 0:02:52]} 5. Nf3 {[%clk 0:02:55]}  Bg7 {[%clk 0:02:52]} 6. c3 {[%clk 0:02:54]}  Nf6 {[%clk 0:02:53]} 7. Nxf6+ {[%clk 0:02:53]}  exf6 {[%clk 0:02:54]} 8. Bd3 {[%clk 0:02:52]}  O-O {[%clk 0:02:54]} 9. Be3 {[%clk 0:02:48]}  Nd7 {[%clk 0:02:32]} 10. Qd2 {[%clk 0:02:48]}  Nb6 {[%clk 0:02:31]} 11. h4 {[%clk 0:02:47]}  Bg4 {[%clk 0:02:31]} 12. O-O-O {[%clk 0:02:42]}  Bxf3 {[%clk 0:02:28]} 13. gxf3 {[%clk 0:02:40]}  h5 {[%clk 0:02:28]} 14. Bh6 {[%clk 0:02:33]}  Nd5 {[%clk 0:02:23]} 15. Rhg1 {[%clk 0:02:28]}  Kh7 {[%clk 0:01:51]} 16. Bxg7 {[%clk 0:02:12]}  Kxg7 {[%clk 0:01:51]} 17. f4 {[%clk 0:02:04]}  f5 {[%clk 0:01:49]} 18. Rg5 {[%clk 0:01:52]}  Qd6 {[%clk 0:01:46]} 19. Bxf5 {[%clk 0:01:38]}  Qxf4 {[%clk 0:01:43]} 20. Rdg1 {[%clk 0:01:22]}  Rae8 {[%clk 0:01:22]} 21. Bxg6 {[%clk 0:00:42]}  fxg6 {[%clk 0:01:11]} 22. Rxg6+ {[%clk 0:00:43]}  Kh7 {[%clk 0:01:11]} 23. R6g5 {[%clk 0:00:22]}  Rf6 {[%clk 0:01:02]} 24. Rxh5+ {[%clk 0:00:10]}  Rh6 {[%clk 0:01:00]} 25. Rhg5 {[%clk 0:00:08]}  Re7 {[%clk 0:00:56]} 26. Qxf4 {[%clk 0:00:04]}  Nxf4 {[%clk 0:00:56]} 27. R1g4 {[%clk 0:00:05]}  Nd3+ {[%clk 0:00:50]} 28. Kc2 {[%clk 0:00:05]}  Nxf2 {[%clk 0:00:50]} 29. Rg2 {[%clk 0:00:04]}  Ne4 {[%clk 0:00:47]} 30. R5g4 {[%clk 0:00:02]}  Nf6 {[%clk 0:00:47]} 31. Rf4 {[%clk 0:00:02]}  Nd5 {[%clk 0:00:47]} 32. Rfg4 {[%clk 0:00:02]}  Ne3+ {[%clk 0:00:47]} 0-1


[Site "https://www.chess.com"]

[Event "Titled Tuesday Blitz January 31 Early 2023"]
[White "Fiorito, Francisco"]
[Black "Gjestemoen-VonHirsch, Andre"]
[WhiteFideId "180165"]
[BlackFideId "1539531"]
[WhiteElo "2305"]
[BlackElo "2314"]
[Result "0-1"]
[Round "09"]
[TimeControl "180+2"]
[Date "2023.01.31"]
[WhiteClock "0:00:10"]
[BlackClock "0:00:14"]

1. g3 {[%clk 0:03:00]}  Nf6 {[%clk 0:02:56]} 2. Bg2 {[%clk 0:03:00]}  g6 {[%clk 0:02:57]} 3. e4 {[%clk 0:02:58]}  d6 {[%clk 0:02:55]} 4. d4 {[%clk 0:02:58]}  c5 {[%clk 0:02:54]} 5. c3 {[%clk 0:02:53]}  Bg7 {[%clk 0:02:47]} 6. Ne2 {[%clk 0:02:50]}  O-O {[%clk 0:02:45]} 7. O-O {[%clk 0:02:49]}  Qb6 {[%clk 0:02:34]} 8. d5 {[%clk 0:02:47]}  e6 {[%clk 0:02:19]} 9. Na3 {[%clk 0:02:42]}  exd5 {[%clk 0:02:16]} 10. exd5 {[%clk 0:02:41]}  a6 {[%clk 0:01:45]} 11. Bf4 {[%clk 0:02:37]}  Qc7 {[%clk 0:01:39]} 12. Nc4 {[%clk 0:02:30]}  Rd8 {[%clk 0:01:38]} 13. a4 {[%clk 0:02:30]}  b6 {[%clk 0:01:24]} 14. Qc1 {[%clk 0:02:08]}  Bb7 {[%clk 0:01:20]} 15. Rd1 {[%clk 0:01:59]}  b5 {[%clk 0:01:15]} 16. axb5 {[%clk 0:01:58]}  axb5 {[%clk 0:01:16]} 17. Ne3 {[%clk 0:01:56]}  Nbd7 {[%clk 0:01:11]} 18. Rxa8 {[%clk 0:01:55]}  Rxa8 {[%clk 0:01:07]} 19. h4 {[%clk 0:01:44]}  Nb6 {[%clk 0:01:05]} 20. Bg5 {[%clk 0:01:22]}  Re8 {[%clk 0:00:52]} 21. Nf4 {[%clk 0:01:15]}  h6 {[%clk 0:00:38]} 22. Bxf6 {[%clk 0:01:14]}  Bxf6 {[%clk 0:00:39]} 23. h5 {[%clk 0:01:08]}  g5 {[%clk 0:00:38]} 24. Nh3 {[%clk 0:01:04]}  Qc8 {[%clk 0:00:31]} 25. Qc2 {[%clk 0:01:03]}  Rxe3 {[%clk 0:00:16]} 26. fxe3 {[%clk 0:01:03]}  Qg4 {[%clk 0:00:16]} 27. Rf1 {[%clk 0:01:00]}  Kg7 {[%clk 0:00:15]} 28. Qf2 {[%clk 0:01:00]}  Nd7 {[%clk 0:00:14]} 29. Qf3 {[%clk 0:00:55]}  Qxf3 {[%clk 0:00:10]} 30. Bxf3 {[%clk 0:00:55]}  Ne5 {[%clk 0:00:10]} 31. Be4 {[%clk 0:00:56]}  Nc4 {[%clk 0:00:09]} 32. b3 {[%clk 0:00:36]}  Nd2 {[%clk 0:00:07]} 33. Bg2 {[%clk 0:00:11]}  Nxf1 {[%clk 0:00:07]} 34. Bxf1 {[%clk 0:00:12]}  Bxc3 {[%clk 0:00:05]} 35. Bxb5 {[%clk 0:00:12]}  Bxd5 {[%clk 0:00:05]} 36. Bc4 {[%clk 0:00:12]}  Bxc4 {[%clk 0:00:05]} 37. bxc4 {[%clk 0:00:13]}  Be1 {[%clk 0:00:04]} 38. Kg2 {[%clk 0:00:12]}  Kf6 {[%clk 0:00:04]} 39. Kf3 {[%clk 0:00:13]}  Ke5 {[%clk 0:00:04]} 40. Ng1 {[%clk 0:00:12]}  Bd2 {[%clk 0:00:03]} 41. g4 {[%clk 0:00:11]}  f5 {[%clk 0:00:03]} 42. gxf5 {[%clk 0:00:11]}  Kxf5 {[%clk 0:00:04]} 43. Ne2 {[%clk 0:00:12]}  g4+ {[%clk 0:00:04]} 44. Kf2 {[%clk 0:00:13]}  Ke4 {[%clk 0:00:04]} 45. Ng3+ {[%clk 0:00:13]}  Kd3 {[%clk 0:00:04]} 46. Nf5 {[%clk 0:00:14]}  Bxe3+ {[%clk 0:00:01]} 47. Nxe3 {[%clk 0:00:14]}  g3+ {[%clk 0:00:02]} 48. Kf3 {[%clk 0:00:14]}  g2 {[%clk 0:00:03]} 49. Nxg2 {[%clk 0:00:15]}  Kxc4 {[%clk 0:00:04]} 50. Ne3+ {[%clk 0:00:14]}  Kd3 {[%clk 0:00:04]} 51. Nf5 {[%clk 0:00:15]}  c4 {[%clk 0:00:04]} 52. Nxd6 {[%clk 0:00:05]}  c3 {[%clk 0:00:05]} 53. Nb7 {[%clk 0:00:04]}  c2 {[%clk 0:00:06]} 54. Nc5+ {[%clk 0:00:04]}  Kc4 {[%clk 0:00:05]} 55. Ne4 {[%clk 0:00:02]}  c1=Q {[%clk 0:00:06]} 56. Nf2 {[%clk 0:00:02]}  Qc3+ {[%clk 0:00:05]} 57. Kf4 {[%clk 0:00:02]}  Qf6+ {[%clk 0:00:06]} 58. Kg3 {[%clk 0:00:02]}  Kd5 {[%clk 0:00:06]} 59. Nd3 {[%clk 0:00:02]}  Qg5+ {[%clk 0:00:06]} 60. Kf3 {[%clk 0:00:02]}  Kd4 {[%clk 0:00:06]} 61. Nf4 {[%clk 0:00:02]}  Ke5 {[%clk 0:00:05]} 62. Nd3+ {[%clk 0:00:02]}  Kf5 {[%clk 0:00:06]} 63. Nf4 {[%clk 0:00:01]}  Qg4+ {[%clk 0:00:06]} 64. Ke3 {[%clk 0:00:01]}  Qxf4+ {[%clk 0:00:07]} 65. Ke2 {[%clk 0:00:02]}  Qg4+ {[%clk 0:00:07]} 66. Kd2 {[%clk 0:00:03]}  Qxh5 {[%clk 0:00:08]} 67. Kd3 {[%clk 0:00:04]}  Qg5 {[%clk 0:00:09]} 68. Kc4 {[%clk 0:00:05]}  h5 {[%clk 0:00:10]} 69. Kb5 {[%clk 0:00:06]}  h4 {[%clk 0:00:11]} 70. Kc6 {[%clk 0:00:06]}  h3 {[%clk 0:00:12]} 71. Kd7 {[%clk 0:00:07]}  h2 {[%clk 0:00:13]} 72. Ke8 {[%clk 0:00:08]}  h1=Q {[%clk 0:00:13]} 73. Kd7 {[%clk 0:00:09]}  Qd5+ {[%clk 0:00:13]} 74. Ke8 {[%clk 0:00:10]}  Qgg8+ {[%clk 0:00:13]} 75. Ke7 {[%clk 0:00:10]}  Qgf7# {[%clk 0:00:14]} 0-1


[Site "https://www.chess.com"]

[Event "Titled Tuesday Blitz January 31 Early 2023"]
[White "Roux, Baptiste"]
[Black "Battlecruiser_Operational"]
[WhiteFideId "36017450"]
[WhiteElo "2300"]
[BlackElo "2422"]
[Result "1-0"]
[Round "09"]
[TimeControl "180+2"]
[Date "2023.01.31"]
[WhiteClock "0:01:40"]
[BlackClock "0:01:46"]

1. e4 {[%clk 0:02:55]}  e6 {[%clk 0:02:51]} 2. d4 {[%clk 0:02:54]}  d5 {[%clk 0:02:51]} 3. Bd3 {[%clk 0:02:55]}  c5 {[%clk 0:02:47]} 4. exd5 {[%clk 0:02:55]}  exd5 {[%clk 0:02:44]} 5. Nf3 {[%clk 0:02:55]}  Nc6 {[%clk 0:02:44]} 6. O-O {[%clk 0:02:54]}  Nf6 {[%clk 0:02:42]} 7. c3 {[%clk 0:02:49]}  c4 {[%clk 0:02:41]} 8. Bc2 {[%clk 0:02:45]}  Be7 {[%clk 0:02:40]} 9. Re1 {[%clk 0:02:44]}  O-O {[%clk 0:02:39]} 10. h3 {[%clk 0:02:44]}  Re8 {[%clk 0:02:39]} 11. Nbd2 {[%clk 0:02:40]}  Bd6 {[%clk 0:02:33]} 12. b3 {[%clk 0:02:35]}  cxb3 {[%clk 0:02:30]} 13. axb3 {[%clk 0:02:36]}  Rxe1+ {[%clk 0:02:28]} 14. Qxe1 {[%clk 0:02:36]}  Be6 {[%clk 0:02:28]} 15. b4 {[%clk 0:02:35]}  a6 {[%clk 0:02:22]} 16. Nb3 {[%clk 0:02:30]}  Qc7 {[%clk 0:02:19]} 17. Qd1 {[%clk 0:02:13]}  Re8 {[%clk 0:02:06]} 18. Ng5 {[%clk 0:02:01]}  Bc8 {[%clk 0:02:02]} 19. Bd2 {[%clk 0:01:40]}  h6 {[%clk 0:01:57]} 20. Nf3 {[%clk 0:01:40]}  Ne4 {[%clk 0:01:46]} 21. Nc5 {[%clk 0:01:40]} 1-0


[Site "https://www.chess.com"]

[Event "Titled Tuesday Blitz January 31 Early 2023"]
[White "Andreev, Konstantin"]
[Black "Ezat, Mohamed"]
[WhiteFideId "24239305"]
[BlackFideId "10600906"]
[WhiteElo "2195"]
[BlackElo "2402"]
[Result "0-1"]
[Round "09"]
[TimeControl "180+2"]
[Date "2023.01.31"]
[WhiteClock "0:01:25"]
[BlackClock "0:00:15"]

1. e4 {[%clk 0:03:00]}  e5 {[%clk 0:02:57]} 2. Nf3 {[%clk 0:03:01]}  Nc6 {[%clk 0:02:56]} 3. Bc4 {[%clk 0:03:01]}  Nf6 {[%clk 0:02:53]} 4. d4 {[%clk 0:03:01]}  exd4 {[%clk 0:02:38]} 5. e5 {[%clk 0:03:02]}  d5 {[%clk 0:02:36]} 6. Bb5 {[%clk 0:03:02]}  Ne4 {[%clk 0:02:35]} 7. Nxd4 {[%clk 0:03:03]}  Bc5 {[%clk 0:02:26]} 8. O-O {[%clk 0:03:01]}  O-O {[%clk 0:02:20]} 9. Bxc6 {[%clk 0:03:01]}  bxc6 {[%clk 0:02:20]} 10. Be3 {[%clk 0:02:57]}  Ba6 {[%clk 0:01:48]} 11. Re1 {[%clk 0:02:51]}  Qh4 {[%clk 0:01:41]} 12. f3 {[%clk 0:02:49]}  Ng5 {[%clk 0:01:37]} 13. f4 {[%clk 0:02:48]}  Ne4 {[%clk 0:01:33]} 14. Nc3 {[%clk 0:02:28]}  f5 {[%clk 0:01:20]} 15. Nxe4 {[%clk 0:02:21]}  fxe4 {[%clk 0:01:15]} 16. g3 {[%clk 0:02:21]}  Qh3 {[%clk 0:01:11]} 17. Nxc6 {[%clk 0:02:12]}  Bxe3+ {[%clk 0:01:06]} 18. Rxe3 {[%clk 0:02:13]}  Rxf4 {[%clk 0:01:05]} 19. Qxd5+ {[%clk 0:02:01]}  Kh8 {[%clk 0:01:04]} 20. Ree1 {[%clk 0:01:53]}  Raf8 {[%clk 0:00:19]} 21. c4 {[%clk 0:01:47]}  Rf2 {[%clk 0:00:16]} 22. Qxe4 {[%clk 0:01:25]}  Qxh2# {[%clk 0:00:15]} 0-1


[Site "https://www.chess.com"]